Cogmind - Beta 16.1 @@@ ROGUE MODE // 2026.01.24 @ 18:14:43 Player: szymekc Result: Self-destructed Performance ------------- Evolutions (7) 3500 Regions Visited (12) 2400 Robots Destroyed (9) 45 Value Destroyed (168) 168 Prototype IDs (2) 40 Alien Tech Used (0) 0 Bonus (1200) 1200 TOTAL SCORE: 7353 Bonus ------- Entered Garrisons 200 Entered DSFs 1000 Cogmind --------- Core Integrity 361/1300 Matter 188/300 Energy 99/100 System Corruption 0% Temperature Cool (0) Movement Core (50) Location -3/Research Parts ------- > --- POWER (2) -------- (None) > --- PROPULSION (10) -- (None) > --- UTILITY (7) ------ (None) > --- WEAPON (2) ------- (None) > --- INVENTORY (5) ---- Fusion Compressor Micro Fission Core Medium Storage Unit Force Lance Peak State ------------ > --- POWER ------------ Light Ion Engine > --- PROPULSION ------- Airjet Airjet Airjet > --- UTILITY ---------- Reaction Control System Improved Propulsion Shielding Improved Light Armor Plating Improved Light Armor Plating > --- WEAPON ----------- Hammer > --- INVENTORY -------- Medium Storage Unit Grenade Launcher [Rating: 23] Favorites ----------- Power Light Ion Engine Engine Light Ion Engine Power Core Fusion Compressor Propulsion Airjet Hover Unit Airjet Flight Unit Cooled Cesium-ion Thruster Utility Improved Light Armor Plating Device Advanced Weight Redist. System Processor Terrain Scan Processor Hackware System Shield Protection Improved Light Armor Plating Weapon Hammer Launcher Heavy Missile Launcher Impact Weapon Hammer Slashing Weapon Chainsword Piercing Weapon Force Lance Build | -11 -10 -9 -8 -7 -7 -6 -5 -5 -4 -4 -4 -3 ------- Run | Yrd Mat Mat Mat Fac DSF Fac Fac Ext Fac DSF Gar Res Slots Evolved 14 | . . 2 2 2 . 2 2 . 2 . . 2 Power 1 | . . . . . . . 1 . . . . . Propulsion 8 | . . 1 1 1 . 1 1 . 1 . . 2 Utility 5 | . . 1 1 1 . 1 . . 1 . . . Weapon . | . . . . . . . . . . . . . Parts Attached 26 | . 2 6 3 . 5 5 2 . 1 . 2 . Power 4 | . . 1 1 . . 1 1 . . . . . Engine 3 | . . 1 1 . . 1 . . . . . . Core 1 | . . . . . . . 1 . . . . . Reactor . | . . . . . . . . . . . . . Propulsion 9 | . . 3 . . 4 1 . . . . 1 . Treads . | . . . . . . . . . . . . . Leg . | . . . . . . . . . . . . . Wheel . | . . . . . . . . . . . . . Hover 7 | . . 3 . . 4 . . . . . . . Flight 2 | . . . . . . 1 . . . . 1 . Utility 9 | . 1 2 2 . . 3 . . 1 . . . Device 4 | . . . 1 . . 3 . . . . . . Storage . | . . . . . . . . . . . . . Processor 1 | . 1 . . . . . . . . . . . Hackware 1 | . . . . . . . . . 1 . . . Protection 3 | . . 2 1 . . . . . . . . . Artifact . | . . . . . . . . . . . . . Weapon 4 | . 1 . . . 1 . 1 . . . 1 . Energy Gun . | . . . . . . . . . . . . . Energy Cannon . | . . . . . . . . . . . . . Ballistic Gun . | . . . . . . . . . . . . . Ballistic Cannon . | . . . . . . . . . . . . . Launcher 1 | . . . . . . . 1 . . . . . Special Weapon . | . . . . . . . . . . . . . Impact Weapon 1 | . 1 . . . . . . . . . . . Slashing Weapon 1 | . . . . . 1 . . . . . . . Piercing Weapon 1 | . . . . . . . . . . . 1 . Special Melee Weapon . | . . . . . . . . . . . . . Unidentified Prototypes 2 | . . . . . . 2 . . . . . . Parts Lost 23 | . . . 3 . 11 5 2 . . . 2 . Power 3 | . . . 2 . . 1 . . . . . . Propulsion 10 | . . . . . 7 1 1 . . . 1 . Utility 7 | . . . 1 . 3 2 1 . . . . . Weapon 3 | . . . . . 1 1 . . . . 1 . Highest Loss Streak 11 | . . . 2 . 11 3 5 . . . 1 . To Critical Strikes . | . . . . . . . . . . . . . Average Backups 3 | . 1 1 2 3 3 4 4 5 4 4 4 4 Power . | . . . . . . . . 1 1 1 2 2 Propulsion . | . . . . . . . . . . . . . Utility 1 | . . 1 1 2 2 2 2 2 1 1 1 1 Weapon 1 | . . . . 1 1 2 1 2 2 2 1 1 Tool/Special . | . . . . . . . . . . . . . Unused Backups 3 | . . . . . . . . . . 1 . 2 Power 1 | . . . . . . . . . . . . 1 Propulsion . | . . . . . . . . . . . . . Utility 1 | . . . . . . . . . . . . 1 Weapon 1 | . . . . . . . . . . 1 . . Tool/Special . | . . . . . . . . . . . . . Average Slot Usage (%) 28 | . 18 74 75 53 42 16 6 . 3 5 3 . Engine 2 | . . 8 6 . . 2 . . . . . . Hover 8 | . . 27 27 23 18 . . . . . . . Device 1 | . . . 5 . . 5 1 . . . . . Processor 2 | . 8 11 4 . . . . . . . . . Protection 6 | . . 17 22 23 10 . . . . . . . Impact Weapon 3 | . 10 11 9 7 6 . . . . . . . Slashing Weapon 1 | . . . . . 6 5 . . . . . . Peak Build Rating 23 | . 3 19 23 19 23 19 17 1 4 5 11 8 Average Rating 9 | . 1 16 21 19 17 9 6 1 3 4 3 1 On Entrance 6 | . . 3 19 19 19 4 12 1 1 4 5 1 Avg Prop Armor Cover (%) 5 | . . . 4 . 6 . . . . . . . Naked Turns 197 | . 13 . . . . . 21 56 3 . 33 71 Heaviest Build 14 | . 2 11 14 10 13 7 5 . . . 7 6 Greatest Support 40 | 3 3 24 24 16 40 18 6 3 3 3 5 3 Greatest Overweight (x) 2 | . . . . . 1 1 1 . . . 2 1 Average Overweight (x) . | . . . . . . . . . . . . . Largest Inventory Capacity 5 | 5 5 5 5 5 5 5 5 5 5 5 5 5 Average Capacity 5 | 5 5 5 5 5 5 5 5 5 5 5 5 5 Most Carried 5 | . 2 2 3 3 4 4 5 5 5 5 5 4 Average Carried 3 | . 1 1 2 3 3 4 4 5 4 4 4 3 Final Capacity 5 | 5 5 5 5 5 5 5 5 5 5 5 5 5 Final Carried 5 | . 2 1 3 3 4 4 5 5 4 5 4 4 Class Distribution -------------------- 100% | Mutant Dominant Class ---------------- Mutant | -10/Materials Mutant | -9/Materials Mutant | -8/Materials Mutant | -7/Factory Mutant | -7/DSF Mutant | -6/Factory Mutant | -5/Factory Mutant | -5/Extension Mutant | -4/Factory Mutant | -4/DSF Mutant | -4/Garrison Mutant | -3/Research Resources | -11 -10 -9 -8 -7 -7 -6 -5 -5 -4 -4 -4 -3 ----------- Run | Yrd Mat Mat Mat Fac DSF Fac Fac Ext Fac DSF Gar Res Matter Collected 326 | 187 33 . 59 . 1 20 . . . . 10 16 Remotely . | . . . . . . . . . . . . . Salvage Created 206 | . 21 . 125 . . . 60 . . . . . Parts 12 | . 3 . 2 . . . 7 . . . . . Haulers Intercepted . | . . . . . . . . . . . . . Recyclers Shooed . | . . . . . . . . . . . . . Parts Field Recycled . | . . . . . . . . . . . . . Retrieved Matter . | . . . . . . . . . . . . . Parts Self-Destructed . | . . . . . . . . . . . . . Prevented . | . . . . . . . . . . . . . Parts Restored . | . . . . . . . . . . . . . Kills | -11 -10 -9 -8 -7 -7 -6 -5 -5 -4 -4 -4 -3 ------- Run | Yrd Mat Mat Mat Fac DSF Fac Fac Ext Fac DSF Gar Res Combat Hostiles Destroyed 5 | . . . . . . . 5 . . . . . AOE 5 | . . . . . . . 5 . . . . . Classes Destroyed 4 | . 1 . 2 . . . 1 . . . . . Worker 2 | . . . 1 . . . 1 . . . . . Builder 1 | . 1 . . . . . . . . . . . Recycler 1 | . . . 1 . . . . . . . . . Swarmer 5 | . . . . . . . 5 . . . . . Best Kill Streak 6 | . 1 . 1 . . . 6 . . . . . Combat Bots Only 5 | . . . . . . . 5 . . . . . Max Kills in Single Turn 4 | . 1 . 1 . . . 4 . . . . . Gunslinging . | . . . . . . . . . . . . . Exploded 3 | . . . . . . . 3 . . . . . Melee . | . . . . . . . . . . . . . Uniques/NPCs Destroyed . | . . . . . . . . . . . . . Combat | -11 -10 -9 -8 -7 -7 -6 -5 -5 -4 -4 -4 -3 -------- Run | Yrd Mat Mat Mat Fac DSF Fac Fac Ext Fac DSF Gar Res Hostile Shots Fired 401 | . 7 31 63 . 62 54 25 17 . 17 50 75 Missed 176 | . 5 14 30 . 25 19 14 11 . 10 16 32 Hits 225 | . 2 17 33 . 37 35 11 6 . 7 34 43 Melee 6 | . . . . . 4 . . . . . 2 . Projectile 219 | . 2 17 33 . 33 35 11 6 . 7 32 43 Critical Strikes 4 | . . . 2 . 1 . . . . . 1 . Damage Taken 3994 | . 16 150 512 . 832 559 204 174 . 135 473 939 Core 2585 | . 16 42 96 . 294 399 129 174 . 134 362 939 Absorbed by Shields 60 | . . . . . . 8 . . . . 52 . Redirected to Shielding 111 | . . . 25 . 86 . . . . . . . Core Remaining (%) 75 | 100 93 89 82 . 58 53 . 69 . . 56 . Volleys Fired 5 | . . . . . . . 4 . . . 1 . Largest 1 | . . . . . . . 1 . . . 1 . Hottest 39 | . . . . . . . 39 . . . 39 . Shots Fired 5 | . . . . . . . 4 . . . 1 . Gun . | . . . . . . . . . . . . . Cannon . | . . . . . . . . . . . . . Launcher 5 | . . . . . . . 4 . . . 1 . Special . | . . . . . . . . . . . . . Kinetic . | . . . . . . . . . . . . . Thermal . | . . . . . . . . . . . . . Explosive 5 | . . . . . . . 4 . . . 1 . Electromagnetic . | . . . . . . . . . . . . . Robot Hit Streak 1 | . . . . . . . 1 . . . . . Robot Miss Streak . | . . . . . . . . . . . . . Penetration Max . | . . . . . . . . . . . . . Secondary Targets . | . . . . . . . . . . . . . Shots Hit Robots 7 | . 3 1 1 . 1 . 1 . . . . . Core Hits 12 | . 1 . 1 . . . 10 . . . . . Critical Kills . | . . . . . . . . . . . . . Critical Parts Destroyed . | . . . . . . . . . . . . . Critical Strikes . | . . . . . . . . . . . . . Melee Attacks 19 | . 5 5 1 . 5 2 . . . . . 1 Impact 11 | . 5 5 1 . . . . . . . . . Slashing 7 | . . . . . 5 2 . . . . . . Piercing 1 | . . . . . . . . . . . . 1 Sneak Attacks 3 | . 2 . 1 . . . . . . . . . Combat Hostiles . | . . . . . . . . . . . . . Follow-up Attacks . | . . . . . . . . . . . . . Damage Inflicted 1039 | . 122 38 137 . 43 . 697 . . 2 . . Guns . | . . . . . . . . . . . . . Cannons . | . . . . . . . . . . . . . Explosions 697 | . . . . . . . 697 . . . . . Melee 213 | . 122 22 35 . 34 . . . . . . . Ramming 129 | . . 16 102 . 9 . . . . 2 . . Kinetic . | . . . . . . . . . . . . . Thermal . | . . . . . . . . . . . . . Explosive 697 | . . . . . . . 697 . . . . . Electromagnetic . | . . . . . . . . . . . . . Impact 179 | . 122 22 35 . . . . . . . . . Slashing 34 | . . . . . 34 . . . . . . . Piercing . | . . . . . . . . . . . . . Highest Corruption 1 | . . . 1 . . . 1 1 . . . . Average Corruption 1 | . . . 1 . . . 1 1 . . . . Corruption Purged . | . . . . . . . . . . . . . Corruption Blocked . | . . . . . . . . . . . . . Effects 1 | . . . 1 . . . . . . . . . Matter Fused 1 | . . . 1 . . . . . . . . . Overload Shots . | . . . . . . . . . . . . . Overflow Damage 96 | . . . 10 . 9 . 77 . . . . . Projectiles . | . . . . . . . . . . . . . Explosions 77 | . . . . . . . 77 . . . . . Melee 19 | . . . 10 . 9 . . . . . . . Knockbacks 1 | . . . 1 . . . . . . . . . Impact 1 | . . . 1 . . . . . . . . . Kinetic . | . . . . . . . . . . . . . Secondary . | . . . . . . . . . . . . . Self-Inflicted Damage 170 | . . 8 49 . 4 . 34 . . 1 74 . Shots 2 | . . . . . . . 1 . . . 1 . Rammed 12 | . . 1 7 . 3 . . . . 1 . . Targets Rammed 12 | . . 1 7 . 3 . . . . 1 . . Kicked . | . . . . . . . . . . . . . Crushed . | . . . . . . . . . . . . . Highest Temperature 19 | . . . 19 . . . . . . . . . Average Temperature 14 | . . . 14 . . . . . . . . . Received Heat Transfer 484 | . . 24 144 . 103 48 . 45 . . 72 48 Siege Activations . | . . . . . . . . . . . . . Martial Activations . | . . . . . . . . . . . . . Shielding Activations . | . . . . . . . . . . . . . Robots Disrupted . | . . . . . . . . . . . . . Combat Hostiles . | . . . . . . . . . . . . . Robots Corrupted 1 | . . . 1 . . . . . . . . . Combat Hostiles . | . . . . . . . . . . . . . Parts Fried 1 | . . . 1 . . . . . . . . . Impact Corruptions 1 | . . . 1 . . . . . . . . . Robots Melted . | . . . . . . . . . . . . . Combat Hostiles . | . . . . . . . . . . . . . Parts Melted . | . . . . . . . . . . . . . Heat Transferred . | . . . . . . . . . . . . . Parts Sabotaged 1 | . . . . . . . . . . . 1 . Parts Stolen . | . . . . . . . . . . . . . Parts Stripped . | . . . . . . . . . . . . . Power Chain Reactions . | . . . . . . . . . . . . . Alert | -11 -10 -9 -8 -7 -7 -6 -5 -5 -4 -4 -4 -3 ------- Run | Yrd Mat Mat Mat Fac DSF Fac Fac Ext Fac DSF Gar Res Maximum Alert Level 1 | . . . . . . . 1 . . . . . Low Security (%) 97 | 100 100 100 100 100 100 100 62 100 100 100 100 100 Level 1 2 | . . . . . . . 38 . . . . . Level 2 . | . . . . . . . . . . . . . Level 3 . | . . . . . . . . . . . . . Level 4 . | . . . . . . . . . . . . . Level 5 . | . . . . . . . . . . . . . High Security . | . . . . . . . . . . . . . Max Security . | . . . . . . . . . . . . . Peak Influence 215 | . 6 40 75 33 26 15 215 100 42 15 97 123 Initial 100 | . . . 16 33 26 . 4 100 42 15 11 48 Average 29 | . 1 11 5 33 7 2 99 90 35 15 59 71 Influence Increases 660 | . 7 62 85 5 16 52 225 7 . . 96 105 Destroy 0b10 Robot/C 100 | . . . . . . . 100 . . . . . Destroy 0b10 Robot/NC 20 | . 5 . 10 . . . 5 . . . . . Destroy Leader 10 | . . . . . . . 10 . . . . . Successful Hack 17 | . . . . 5 . 5 . 7 . . . . Disable Machine 30 | . . . . . . . 15 . . . . 15 Anti-Garrison Action 50 | . . . . . . . . . . . 50 . Destroy Structure 118 | . 2 2 . . 1 2 80 . . . 31 . Partial Spotted 30 | . . . . . . . . . . . . 30 Lose Combat Pursuer 285 | . . 60 75 . 15 45 15 . . . 15 60 Influence Decreases 537 | . 7 22 50 42 54 42 30 125 65 7 24 69 Entered New Map 284 | . . . 24 42 12 . 6 105 45 7 4 39 Time Decay 146 | . 7 22 15 . . 12 20 20 20 . . 30 Lost Part 107 | . . . 11 . 42 30 4 . . . 20 . Squads Dispatched 7 | . . 2 . . 1 1 1 . . 1 . 1 Investigation . | . . . . . . . . . . . . . Extermination 2 | . . . . . . 1 . . . . . 1 Reinforcement 4 | . . 2 . . 1 . . . . 1 . . Assault . | . . . . . . . . . . . . . Garrison 1 | . . . . . . . 1 . . . . . Intercept . | . . . . . . . . . . . . . Searches Triggered . | . . . . . . . . . . . . . Construction Impeded . | . . . . . . . . . . . . . Haulers Reinforced . | . . . . . . . . . . . . . Active Scanning Responses . | . . . . . . . . . . . . . Cargo Convoy Interrupts . | . . . . . . . . . . . . . Stealth | -11 -10 -9 -8 -7 -7 -6 -5 -5 -4 -4 -4 -3 --------- Run | Yrd Mat Mat Mat Fac DSF Fac Fac Ext Fac DSF Gar Res Distress Signals 3 | . . 1 2 . . . . . . . . . Communications Jammed . | . . . . . . . . . . . . . Distress Signals . | . . . . . . . . . . . . . Times Spotted 94 | . 5 12 13 . 16 6 9 4 1 5 6 17 Peak Tracking Total 14 | . 5 9 13 . 14 3 5 4 1 5 6 12 Tactical Retreats 9 | . . 2 1 . 1 2 1 . . . 1 1 Traps | -11 -10 -9 -8 -7 -7 -6 -5 -5 -4 -4 -4 -3 ------- Run | Yrd Mat Mat Mat Fac DSF Fac Fac Ext Fac DSF Gar Res Traps Triggered 7 | . . . 1 . 1 1 . . . . 3 1 Indirectly . | . . . . . . . . . . . . . Trap Hack Attempts . | . . . . . . . . . . . . . Triggered . | . . . . . . . . . . . . . Disarmed . | . . . . . . . . . . . . . Reprogrammed . | . . . . . . . . . . . . . Reused . | . . . . . . . . . . . . . Traps Extracted . | . . . . . . . . . . . . . Installed . | . . . . . . . . . . . . . Triggered . | . . . . . . . . . . . . . Machines | -11 -10 -9 -8 -7 -7 -6 -5 -5 -4 -4 -4 -3 ---------- Run | Yrd Mat Mat Mat Fac DSF Fac Fac Ext Fac DSF Gar Res Machines Disabled 2 | . . . . . . . 1 . . . . 1 Max in Single Turn 1 | . . . . . . . 1 . . . . 1 Machines Repaired . | . . . . . . . . . . . . . Machines Dismantled . | . . . . . . . . . . . . . Machines Sabotaged . | . . . . . . . . . . . . . Overloaded Fab Kills . | . . . . . . . . . . . . . Hacking | -11 -10 -9 -8 -7 -7 -6 -5 -5 -4 -4 -4 -3 --------- Run | Yrd Mat Mat Mat Fac DSF Fac Fac Ext Fac DSF Gar Res Machines Accessed 10 | . 2 . 1 1 . 1 . 1 1 . 1 2 Terminals 9 | . 1 . 1 1 . 1 . 1 1 . 1 2 Fabricators . | . . . . . . . . . . . . . Repair Stations . | . . . . . . . . . . . . . Recycling Units 1 | . 1 . . . . . . . . . . . Scanalyzers . | . . . . . . . . . . . . . Garrison Access . | . . . . . . . . . . . . . Total Hacks 15 | . 3 . 1 1 . 1 . 1 5 . 1 2 Successful 7 | . 1 . . 1 . 1 . 1 1 . 1 1 Failed 8 | . 2 . 1 . . . . . 4 . . 1 Catastrophic 3 | . 1 . 1 . . . . . . . . 1 Database Lockouts . | . . . . . . . . . . . . . Manual 5 | . 2 . 1 . . . . . . . 1 1 Terminals 14 | . 2 . 1 1 . 1 . 1 5 . 1 2 Fabricators . | . . . . . . . . . . . . . Repair Stations . | . . . . . . . . . . . . . Recycling Units 1 | . 1 . . . . . . . . . . . Scanalyzers . | . . . . . . . . . . . . . Garrison Access . | . . . . . . . . . . . . . Terminal Hacks 5 | . . . . 1 . 1 . 1 1 . . 1 Open Door 1 | . . . . . . . . 1 . . . . Open DSF 4 | . . . . 1 . 1 . . 1 . . 1 Fabricator Hacks . | . . . . . . . . . . . . . Repair Station Hacks . | . . . . . . . . . . . . . Recycling Unit Hacks 1 | . 1 . . . . . . . . . . . Retrieve Components 1 | . 1 . . . . . . . . . . . Scanalyzer . | . . . . . . . . . . . . . Garrison Access Hacks . | . . . . . . . . . . . . . Unauthorized Hacks 1 | . . . . . . . . . . . 1 . Terminals 1 | . . . . . . . . . . . 1 . Override 1 | . . . . . . . . . . . 1 . Fabricators . | . . . . . . . . . . . . . Repair Stations . | . . . . . . . . . . . . . Recycling Units . | . . . . . . . . . . . . . Scanalyzers . | . . . . . . . . . . . . . Garrison Access . | . . . . . . . . . . . . . Data Cores Recovered . | . . . . . . . . . . . . . Used . | . . . . . . . . . . . . . Hacking Detections 7 | . 1 . 1 1 . 1 . 1 1 . . 1 Full Trace Events . | . . . . . . . . . . . . . Feedback Events . | . . . . . . . . . . . . . Feedback Blocked . | . . . . . . . . . . . . . Robot Schematics Acquired . | . . . . . . . . . . . . . Robots Built . | . . . . . . . . . . . . . Authchips . | . . . . . . . . . . . . . Time . | . . . . . . . . . . . . . Total Robot Build Rating . | . . . . . . . . . . . . . Part Schematics Acquired . | . . . . . . . . . . . . . Parts Built . | . . . . . . . . . . . . . Authchips . | . . . . . . . . . . . . . Time . | . . . . . . . . . . . . . Total Part Build Rating . | . . . . . . . . . . . . . Part Studies Acquired . | . . . . . . . . . . . . . Parts Repaired . | . . . . . . . . . . . . . Time . | . . . . . . . . . . . . . Parts Recycled . | . . . . . . . . . . . . . Recycled Matter . | . . . . . . . . . . . . . Retrieved Matter . | . . . . . . . . . . . . . Retrieved Components 1 | . 1 . . . . . . . . . . . Parts Scanalyzed . | . . . . . . . . . . . . . Part Schematics Acquired . | . . . . . . . . . . . . . Parts Damaged . | . . . . . . . . . . . . . Bothacking | -11 -10 -9 -8 -7 -7 -6 -5 -5 -4 -4 -4 -3 ------------ Run | Yrd Mat Mat Mat Fac DSF Fac Fac Ext Fac DSF Gar Res Used RIF Installer . | . . . . . . . . . . . . . Robots Hacked . | . . . . . . . . . . . . . Non-combat . | . . . . . . . . . . . . . Combat . | . . . . . . . . . . . . . Robot Hacks Applied . | . . . . . . . . . . . . . Relay Couplers Released . | . . . . . . . . . . . . . Fabnet Peak Effective % . | . . . . . . . . . . . . . Robots Rewired . | . . . . . . . . . . . . . Allies Hacked . | . . . . . . . . . . . . . Hacks Repelled . | . . . . . . . . . . . . . Allies | -11 -10 -9 -8 -7 -7 -6 -5 -5 -4 -4 -4 -3 -------- Run | Yrd Mat Mat Mat Fac DSF Fac Fac Ext Fac DSF Gar Res Total Allies . | . . . . . . . . . . . . . Largest Group . | . . . . . . . . . . . . . Highest-Rated Group . | . . . . . . . . . . . . . Highest-Rated Ally . | . . . . . . . . . . . . . Total Orders . | . . . . . . . . . . . . . Ally Attacks . | . . . . . . . . . . . . . Total Damage . | . . . . . . . . . . . . . Kills . | . . . . . . . . . . . . . Allies Corrupted . | . . . . . . . . . . . . . Allies Melted . | . . . . . . . . . . . . . Intel | -11 -10 -9 -8 -7 -7 -6 -5 -5 -4 -4 -4 -3 ------- Run | Yrd Mat Mat Mat Fac DSF Fac Fac Ext Fac DSF Gar Res Active Infowar (turns) 14 | . . . . . . 14 . . . . . . Sensors 14 | . . . . . . 14 . . . . . . Robot Analysis Total . | . . . . . . . . . . . . . Derelict Logs Recovered . | . . . . . . . . . . . . . Drone Launches . | . . . . . . . . . . . . . Drone Recoveries . | . . . . . . . . . . . . . Exploration | -11 -10 -9 -8 -7 -7 -6 -5 -5 -4 -4 -4 -3 ------------- Run | Yrd Mat Mat Mat Fac DSF Fac Fac Ext Fac DSF Gar Res Turns Passed 842 | 9 69 104 110 2 77 149 50 56 42 20 78 76 Spaces Moved 1388 | 19 100 156 177 3 98 289 89 112 81 34 89 141 Core 799 | 19 100 25 . . 2 159 40 112 81 34 86 141 Treads . | . . . . . . . . . . . . . Legs . | . . . . . . . . . . . . . Wheels . | . . . . . . . . . . . . . Hover 407 | . . 131 177 3 96 . . . . . . . Flight 182 | . . . . . . 130 49 . . . 3 . Fastest Speed 32 | 50 50 50 52 56 44 32 35 50 50 50 35 50 Average Speed 49 | 50 50 51 52 56 55 44 42 50 50 50 51 50 Slowest Speed 150 | 50 50 60 56 56 100 100 100 50 50 50 150 100 Overloaded Moves 1 | . . . . . . 1 . . . . . . Propulsion Burnouts . | . . . . . . . . . . . . . Robots Hopped 1 | . . . . . . 1 . . . . . . Potential Cave-ins . | . . . . . . . . . . . . . Cave-ins Triggered . | . . . . . . . . . . . . . Exploration Rate (%) 26 | 3 30 30 32 . 90 18 4 25 3 45 30 9 Regions Visited 12 Branch Regions 1 Pre-discovered Areas . | . . . . . . . . . . . . . Known Exits Taken 2 | . . . . 1 . . . . 1 . . . Unknown Exits Taken 7 | 1 1 1 1 . . 1 1 1 . . . . Scrap Searched . | . . . . . . . . . . . . . Spaces Dug 55 | . 2 2 . . 1 2 33 . . . 15 . Terrain Destroyed 75 | . 2 2 . . 1 2 53 . . . 15 . Melee 7 | . 2 2 . . 1 2 . . . . . . Projectile . | . . . . . . . . . . . . . AOE 68 | . . . . . . . 53 . . . 15 . Terrain Rammed . | . . . . . . . . . . . . . Walls Destroyed . | . . . . . . . . . . . . . Machines Disabled . | . . . . . . . . . . . . . Actions | -11 -10 -9 -8 -7 -7 -6 -5 -5 -4 -4 -4 -3 --------- Run | Yrd Mat Mat Mat Fac DSF Fac Fac Ext Fac DSF Gar Res Total 1485 | 18 108 167 189 2 111 302 96 111 81 37 119 144 Wait 1 | . . . . . . 1 . . . . . . Move 1377 | 18 99 155 176 2 98 287 88 111 80 34 88 141 Hop . | . . . . . . . . . . . . . Pick Up 7 | . 2 . 2 . 1 . . . . 2 . . Fast Attach 22 | . 2 5 2 . 5 6 1 . . . 1 . Attach 6 | . . 1 . . . . 1 . 1 . 2 1 Detach 4 | . . . . . . . 2 . . . 1 1 Swap 1 | . . . 1 . . . . . . . . . Drop 1 | . . . . . . . . . . 1 . . Fire 5 | . . . . . . . 4 . . . 1 . Melee 19 | . 5 5 1 . 5 2 . . . . . 1 Ram 10 | . . 1 7 . 2 . . . . . . . Kick . | . . . . . . . . . . . . . Crush . | . . . . . . . . . . . . . Escape Stasis 32 | . . . . . . 6 . . . . 26 . Rewire . | . . . . . . . . . . . . . Trap . | . . . . . . . . . . . . . Miscellaneous . | . . . . . . . . . . . . . Route ------- -11/Scrapyard -10/Materials -9/Materials -8/Materials -7/Factory -7/DSF -6/Factory -5/Factory -5/Extension -4/Factory -4/DSF -4/Garrison (discovered 3 exits: *Res x3) -3/Research History --------- Turn | Location | Event 4 | -11/Scrapyard | Discovered new exit (range 15) 10 | -11/Scrapyard | Entered Materials 77 | -10/Materials | Discovered new exit (range 4) 79 | -10/Materials | Entered another Materials area 79 | -9/Materials | Evolved 2 slots: Propulsion x1, Utility x1 175 | -9/Materials | Discovered new exit (range 16) 183 | -9/Materials | Entered another Materials area 183 | -8/Materials | Evolved 2 slots: Propulsion x1, Utility x1 285 | -8/Materials | Discovered new exit (range 16) 293 | -8/Materials | Entered Factory 293 | -7/Factory | Evolved 2 slots: Propulsion x1, Utility x1 295 | -7/Factory | Identified exit to DSF 295 | -7/Factory | Entered DSF 319 | -7/DSF | Build established: Mutant 324 | -7/DSF | Additional patrols routed to DSF 336 | -7/DSF | Wild Derelicts raided the area 352 | -7/DSF | Discovered new exit (range 11) 372 | -7/DSF | Entered Factory 372 | -6/Factory | Evolved 2 slots: Propulsion x1, Utility x1 399 | -6/Factory | Lost 11 parts (7n3u1w) 514 | -6/Factory | Spotted B-75 Beast 515 | -6/Factory | Discovered new exit (range 12) 521 | -6/Factory | Entered another Factory area 521 | -5/Factory | Evolved 2 slots: Power x1, Propulsion x1 563 | -5/Factory | Discovered new exit (range 15) 571 | -5/Factory | Lost 5 parts (1p1n2u1w) 571 | -5/Factory | Entered Extension 619 | -5/Extension | Spotted B-75 Beast 621 | -5/Extension | Spotted B-75 Beast 626 | -5/Extension | Discovered new exit (range 3) 627 | -5/Extension | Entered Factory 627 | -4/Factory | Evolved 2 slots: Propulsion x1, Utility x1 668 | -4/Factory | Identified exit to DSF 669 | -4/Factory | Entered DSF 670 | -4/DSF | Joined Warlord attack on 0b10 via DSF 678 | -4/DSF | Discovered new exit (range 15) 689 | -4/DSF | Entered Garrison 710 | -4/Garrison | Spotted B-86 Titan 715 | -4/Garrison | Triggered checkpoint 718 | -4/Garrison | Triggered checkpoint 722 | -4/Garrison | Identified exit to Research 767 | -4/Garrison | Entered Research 767 | -3/Research | Evolved 2 slots: Propulsion x2 787 | -3/Research | 11 allies followed out of DSF 816 | -3/Research | Spotted B-86 Titan 838 | -3/Research | Core integrity fell below 50% 843 | -3/Research | Self-destructed Last Messages --------------- LOCATION=RESEARCH GOAL=ESCAPE 00777_ G5-KV0(g) enters level. 00777_ G5-KV0(g): "Warning: Fun times ahead." 00780_ O-24 Administrator: "IFF HANDSHAKE FAILED. SECURING TERMINAL." 00780_ ALERT: All DSF locations entering lockdown mode. 00782_ Connecting with Terminal... 00783_ Terminal disabled. 00788_ K-01 Serf collects debris. 00811_ K-01 Serf destroyed. 00814_ Acquired 16 matter. 00815_ Triggered Segregator Trap. 00815_ Arcs of energy rise from the floor. 00817_ R-10 Processor collects Med. Matter Pod. 00818_ Connecting with DSF Access... 00836_ C-30 ARC bursts open, deploying its payload. 00836_ S-43 Plague unfolds itself. 00838_ K-01 Serf collects debris. 00843_ ALERT: Potential suspicious activity detected, Programmers report to Research Zone 9A. Map ----- +----------------------------------------------------+ | ?????????????????????????????????????????????????? | | ?????????????????????????????????????????????????? | | ?????????????????????????????????????????????????? | | ?????????????????????????????????????????????????? | | ?????????????????????????????????????????????????? | | ?????????????????????????????????????????????????? | | ?????????????????????????????????????????????????? | | ?????????????????????????????????????????????????? | | ?????????????????????????????????????????????????? | | ?????????????????????????????????????????????????? | | ?????????????????????????????????????????????????? | | ####?????????????????????????????????????????????? | | #?????????????????????????????????????????????? | | #?????????????????????????????????????????????? | | #?????????????????????????????????????????????? | | #?????????????????????????????????????????????? | | =#?????????????????????????????????????????????? | | / #?????????????????????????????????????????????? | | #?????????????????????????????????????????????? | | #????####?????????????????????????????????????? | | #??? [?????????????????????????????????????? | | #??? ????????###########???????????????????? | | ##/##? """????????# #???????????????????? | | #? """"????????# [ ! #???????????????????? | | # """" ??????# #???????????????????? | | # """ #?????# @ #???????????????????? | | + #?#########;#####???????????????????? | | # ! #?# #???????????????????????? | | # #?# #???????????????????????? | | ############ #???????????????????????? | | #?# #???????????????????????? | | #?# #???????????????????????? | | ### +???????????????????????? | | #???????????????????????? | | ###+### ##???????????????????????? | | ??????# #????????????????????????? | | ??????# "" || #????????????????????????? | | ??????# """ || ??????????????????????? | | ??????# "R |* ?????????????????????? | | ??????# """ ?????????????????????? | | ??????# """ ?????????????????????? | | ??????# ###?????????????????????? | | ??????# !!! #???????????????????????? | | ??????# %!!! #???????????????????????? | | ??????# !! ????????????????????????? | | ??????/ ??????????????????????????? | | ??????# ????????????????????????????? | | ??????# ???????????????????????????????? | | ??????? ? ?????????????????????????????????? | | ?????????????????????????????????????????????????? | +----------------------------------------------------+ Best States ------------- Heat Dissipation 46 Energy Generation 10 Energy Capacity 125 Matter Stores 300 Matter Capacity 300 Sight Range 16 Robot Scan Range 16 Terrain Scan Density 85 Additional Mass Support 9 Armor Coverage 300 Propulsion Shielding 66 Evasion (%) 63 Defensive Hacking 10 Item Schematics ----------------- None Robot Schematics ------------------ None Fabricated ------------ Nothing Repaired ---------- Nothing Studied --------- None Alien Tech Used ----------------- None Achievements -------------- None Challenges ------------ None Game ------ Seed FrostXenonCape Manual? 0 Play Time 00:17:07 Cumulative 1109.0 hours Start 2026.01.24 @ 17:57:31 End 2026.01.24 @ 18:14:43 Sessions 1 Manual Loads 0 Difficulty Rogue Special Mode None Game No. 337 Rogue 335 Adventurer 2 Explorer 0 Win Type - Total 82 Types 22/19/19/1/1/1/14/2/1/2 Lore% 97 Gallery% 95 Achievement% 86 Wizard Run 0 Options --------- Layout 0 ASCII 0 Keyboard 1 Movement Numpad Keybinds 0 Fullscreen 1 Font 24/Smallcaps Map View 76x50 Zoom Use 0% Tactical HUD 1 Map Filters NONE Filters NONE Steam 1 RUN: d582e513-d855-4443-866a-72785b5e53d8